[Event "13th Palmanova Festival A 2024"]
[Site "Palmanova"]
[Date "2024.12.31"]
[Round "6.10"]
[White "Zamengo, Fulvio"]
[Black "Marn, Jan"]
[Result "1-0"]
[ECO "C54"]
[WhiteElo "2348"]
[BlackElo "2400"]
[Annotator "TA"]
[PlyCount "115"]
[EventDate "2024.12.27"]
[EventCountry "ITA"]
[SourceTitle "playchess.com"]
[Source "ChessBase"]
[SourceQuality "1"]
[TimeControl "6000+30"]

{[%evp 14,115,33,6,17,18,14,5,6,-6,0,0,0,-10,51,41,50,38,59,0,25,0,4,16,2,0,27,16,17,19,20,0,15,8,26,2,13,0,0,0,25,23,32,30,33,37,35,39,78,30,32,31,34,23,33,11,79,33,77,77,64,56,58,58,50,58,150,145,159,158,268,276,296,288,349,357,384,383,325,225,993,887,1035,959,1653,1399,816,2487,2463,1904,1486,2702,3850,3660,2040,3785,2604,2275,29982,29983,29983,29968,29987,29988]} 1. e4 {[%emt 0:06:24]} e5 {[%emt 0:00:16]} 2. Nf3 {[%emt 0:00:12]} Nc6 {[%emt 0:00:08]} 3. Bc4 {[%emt 0:00:04]} Bc5 {[%emt 0:00:12]} 4. O-O {[%emt 0:00:47]} Nf6 {[%emt 0:00:10]} 5. d3 {[%emt 0:00:06]} d6 {[%emt 0:00:33]} 6. c3 {[%emt 0:00:06]} h6 {[%emt 0:00:40]} 7. Re1 {[%emt 0:00:06]} O-O {[%emt 0:00:35]} 8. h3 {[%emt 0:00:05]} Bb6 {[%emt 0:00:21]} 9. Nbd2 {[%emt 0:01:26]} Ne7 {[%emt 0:00:09]} 10. d4 {[%emt 0:00:44]} Nc6 {[%emt 0:00:46][%cal Re5d4]} 11. a4 {[%emt 0:04:33]} a5 {[%emt 0:02:14][%cal Re5d4]} 12. Ra3 {[%emt 0:00:56]} Re8 {[%emt 0:08:12][%cal Re5d4]} 13. Ba2 {[%emt 0:00:50]} Qe7 {[%emt 0:11:04]} ({Black should play} 13... Ba7 $11) 14. Nc4 {[%emt 0:04:14]} Ba7 {[%emt 0:00:19]} 15. Bb1 {[%emt 0:04:06]} Qf8 {[%emt 0:02:34]} 16. dxe5 {[%emt 0:15:05]} (16. b3 $14) 16... dxe5 {[%emt 0:00:10]} 17. Ne3 {[%emt 0:01:20]} Bxe3 {[%emt 0:02:28]} 18. Bxe3 {[%emt 0:00:08]} b6 {[%emt 0:00:17]} 19. Nh4 {[%emt 0:03:48]} Be6 {[%emt 0:18:34]} 20. Qf3 {[%emt 0:07:06][%cal Oe3h6]} Kh7 {[%emt 0:00:14]} 21. Nf5 {[%emt 0:05:23][%cal Of5h6]} Ng8 {[%emt 0:00:19]} 22. Bc1 {[%emt 0:01:13]} Red8 {[%emt 0:09:32]} 23. g4 {[%emt 0:14:36]} g6 {[%emt 0:05:22]} 24. Ne3 {[%emt 0:00:06]} Nge7 {[%emt 0:00:16]} 25. Ra1 {[%emt 0:04:50]} f6 {[%emt 0:05:52]} 26. h4 {[%emt 0:06:03]} Kg7 {[%emt 0:06:44]} 27. h5 {[%emt 0:08:46]} g5 {[%emt 0:00:12]} 28. Qe2 {[%emt 0:00:05]} Rd7 {[%emt 0:09:58]} 29. Bd3 {[%emt 0:00:07]} Rad8 {[%emt 0:00:05]} 30. Bc4 {[%emt 0:03:20]} Qf7 {[%emt 0:00:54]} 31. Bxe6 {[%emt 0:00:15]} (31. b3 $16) 31... Qxe6 $11 {[%emt 0:00:07]} 32. Qc4 {[%emt 0:00:04]} Kf7 {[%emt 0:04:58]} 33. Kf1 {[%emt 0:00:07]} (33. Qxe6+ Kxe6 34. b3 Rb8 35. Ba3) 33... Nc8 {[%emt 0:06:04]} 34. f3 {[%emt 0:00:52]} (34. Qxe6+ {simplifies} Kxe6 35. f3 Nd6 36. Rb1) 34... N6e7 {[%emt 0:00:24]} (34... Qxc4+ $11 35. Nxc4 Nd6) 35. Ke2 {[%emt 0:02:44]} (35. Qxe6+ $16 Kxe6 36. Ke2) 35... Nd6 {[%emt 0:05:22]} 36. Qxe6+ {[%emt 0:00:07]} Kxe6 {[%emt 0:00:03]} 37. Rd1 {[%emt 0:03:44]} Nb7 {[%emt 0:01:32]} 38. Rxd7 {[%emt 0:00:06]} Rxd7 {[%emt 0:00:04]} 39. b4 {[%emt 0:04:44]} c5 {[%emt 0:06:53]} (39... axb4 $14 40. cxb4 Rd8) 40. Rb1 $16 {[%emt 0:09:17]} cxb4 {[%emt 0:04:41]} 41. cxb4 {[%emt 0:00:18]} Rc7 {[%emt 0:00:00]} (41... Kf7 $16 {was called for.} 42. Nc4 Nc8) 42. bxa5 $18 {[%emt 0:00:00]} bxa5 {[%emt 0:00:00]} 43. Ba3 {[%emt 0:00:00]} Nd6 {[%emt 0:00:00]} 44. Rb6 {[%emt 0:00:00]} Rc6 {[%emt 0:00:00]} 45. Rxc6 {[%emt 0:00:00]} Nxc6 {[%emt 0:00:00]} 46. Bxd6 {[%emt 0:00:00]} Kxd6 $2 {[%emt 0:00:00][%mdl 4096] Endgame KN-KN} (46... Nd4+ 47. Kf2 Kxd6) 47. Nf5+ {[%emt 0:00:00]} Kc5 {[%emt 0:00:00]} 48. Nxh6 {[%emt 0:00:00]} Kb4 {[%emt 0:00:00]} 49. Ng8 {[%emt 0:00:00]} Kxa4 {[%emt 0:00:00]} 50. h6 {[%emt 0:00:00]} (50. Nxf6 $142 Nd8 51. h6) 50... Nd8 {[%emt 0:00:00]} 51. Nxf6 {[%emt 0:00:00]} Nf7 {[%emt 0:00:00]} 52. h7 {[%emt 0:00:00]} Kb3 {[%emt 0:00:00]} 53. Nd7 {[%emt 0:00:00][%cal Od7e5] Nxe5! is the strong threat.} a4 {[%emt 0:00:00][%cal Ba5a4,Ba4a3][%mdl 32] [#]} 54. Nxe5 $1 {[%emt 0:00:00][%mdl 512]} Nh8 {[%emt 0:00:00]} 55. Nd3 {[%emt 0:00:00] Intending e5 and mate.} Kc3 {[%emt 0:00:00]} 56. e5 {[%emt 0:00:00]} a3 {[%emt 0:00:00] [#]} 57. Nc1 $1 {[%emt 0:00:00]} Kc2 {[%emt 0:00:00]} 58. Na2 {[%emt 0:00:00]} 1-0

[Event "13th Palmanova Festival A 2024"]
[Site "Palmanova"]
[Date "2024.12.31"]
[Round "6.11"]
[White "Bouska, Jiri"]
[Black "Hovhannisyan, Mher"]
[Result "1/2-1/2"]
[ECO "C01"]
[WhiteElo "2267"]
[BlackElo "2397"]
[Annotator "TA"]
[PlyCount "107"]
[EventDate "2024.12.27"]
[EventCountry "ITA"]
[SourceTitle "playchess.com"]
[Source "ChessBase"]
[SourceQuality "1"]
[TimeControl "6000+30"]

{[%evp 9,107,4,5,14,15,8,18,10,12,0,0,-6,-2,-16,-20,-22,-20,-19,-10,-22,-17,-14,-8,-12,-11,-11,0,-10,-10,-14,-4,-18,0,0,0,-15,-18,-23,0,0,0,0,0,0,0,0,0,-4,0,0,0,0,0,-16,0,-8,-6,-16,-9,-24,-18,-18,-20,-13,0,-1,0,0,0,0,0,0,0,0,0,0,0,0,0,0,0,0,0,0,0,0,0,0,0,-8,0,0,0,0,0,0,0,0,0,0]} 1. e4 {[%emt 0:03:14]} e6 {[%emt 0:00:05]} 2. d4 {[%emt 0:00:10]} d5 {[%emt 0:00:07]} 3. exd5 {[%emt 0:00:16]} exd5 {[%emt 0:00:06]} 4. Nf3 {[%emt 0:00:10]} Nc6 {[%emt 0:01:42]} 5. Bd3 {[%emt 0:00:10]} Nb4 {[%emt 0:00:42]} 6. Bb5+ {[%emt 0:00:13][%cal Bd3b5,Bb5a4,Ba4c2][%mdl 32]} c6 {[%emt 0:00:16]} 7. Ba4 {[%emt 0:00:05]} Bd6 {[%emt 0:00:34]} 8. c3 {[%emt 0:01:10]} Na6 {[%emt 0:00:06]} 9. Bc2 {[%emt 0:07:12]} Ne7 {[%emt 0:00:15]} 10. O-O {[%emt 0:00:56]} O-O {[%emt 0:06:11]} 11. Bg5 {[%emt 0:10:43]} f6 {[%emt 0:00:23]} 12. Bh4 {[%emt 0:00:19]} Bf5 {[%emt 0:00:31]} 13. Re1 {[%emt 0:03:39]} Qd7 {[%emt 0:07:37]} 14. Bg3 {[%emt 0:01:40]} Bxc2 {[%emt 0:06:01]} 15. Qxc2 {[%emt 0:00:04]} Nf5 {[%emt 0:03:14]} 16. Nbd2 {[%emt 0:02:43][%cal Bb1d2,Bd2f1,Bf1e3][%mdl 32]} Nxg3 {[%emt 0:05:17]} 17. hxg3 {[%emt 0:00:22]} Rfe8 {[%emt 0:05:11]} 18. Nf1 {[%emt 0:07:25]} Nc7 {[%emt 0:24:57]} 19. Ne3 {[%emt 0:09:12]} Bf8 {[%emt 0:01:03]} 20. Re2 {[%emt 0:19:44]} Nb5 {[%emt 0:02:08]} 21. Rae1 {[%emt 0:02:27]} Nd6 {[%emt 0:02:16]} 22. Nd2 {[%emt 0:00:55]} g6 {[%emt 0:06:35]} 23. b3 {[%emt 0:04:18]} Ne4 {[%emt 0:12:40]} 24. Nxe4 {[%emt 0:01:55]} Rxe4 {[%emt 0:01:03]} 25. f3 {[%emt 0:00:37]} Ree8 {[%emt 0:03:35]} 26. Ng4 {[%emt 0:01:06]} Kf7 {[%emt 0:02:25]} 27. Qd2 {[%emt 0:00:53] [#] Qf4 is the strong threat.} Rxe2 {[%emt 0:00:26]} 28. Rxe2 {[%emt 0:02:31]} h5 {[%emt 0:05:10]} 29. Nf2 {[%emt 0:01:24]} Re8 {[%emt 0:03:28]} 30. Rxe8 {[%emt 0:01:08]} Qxe8 $11 {[%emt 0:01:15][%mdl 4096] Endgame. KQB-KQN} 31. Nd3 {[%emt 0:00:01]} Qe6 {[%emt 0:05:20]} 32. Kf2 {[%emt 0:05:49]} Qf5 {[%emt 0:00:52]} 33. Ke2 {[%emt 0:02:56]} g5 {[%emt 0:00:42]} 34. Qe3 {[%emt 0:01:47]} Bd6 {[%emt 0:00:33]} 35. Kf2 {[%emt 0:00:19] The position is equal.} a5 {[%emt 0:01:29]} 36. a4 {[%emt 0:00:47]} b6 {[%emt 0:00:50]} 37. Qe2 {[%emt 0:00:20]} Bc7 {[%emt 0:01:41]} 38. Qc2 {[%emt 0:00:52][%cal Od3e5] And now Ne5+! would win.} Kg7 {[%emt 0:00:56]} 39. Qe2 {[%emt 0:00:59]} Kf8 {[%emt 0:00:41]} 40. b4 {[%emt 0:02:48]} Bd6 {[%emt 0:01:16]} 41. Qe3 {[%emt 0:01:26]} Kf7 {[%emt 0:00:00]} 42. bxa5 {[%emt 0:00:00]} bxa5 {[%emt 0:00:00]} 43. Qe2 {[%emt 0:00:00]} Qc8 {[%emt 0:00:00]} 44. Nc5 {[%emt 0:00:00]} Bxc5 {[%emt 0:00:00]} 45. dxc5 {[%emt 0:00:00] KQ-KQ} Qf8 {[%emt 0:00:00]} 46. Qe3 {[%emt 0:00:00]} Qe7 {[%emt 0:00:05]} 47. Qd4 {[%emt 0:00:00]} Qe5 {[%emt 0:02:51]} 48. Qd3 {[%emt 0:00:00]} Kg7 {[%emt 0:00:20]} 49. Kf1 {[%emt 0:00:00]} Kh6 {[%emt 0:01:27]} 50. Qa6 {[%emt 0:00:00][%csl LRa5,LRc6]} Qxc3 {[%emt 0:00:20] [#] Threatens to win with ...Qc1+.} 51. Qxc6 {[%emt 0:00:00]} Qa1+ {[%emt 0:00:19]} 52. Kf2 {[%emt 0:00:00]} Qd4+ {[%emt 0:00:19]} 53. Kf1 {[%emt 0:00:00]} Qa1+ {[%emt 0:00:30]} 54. Kf2 {[%emt 0:00:00] A balanced but interesting game.   Weighted Error Value: White=0.03 (flawless) /Black=0.02 (flawless) .  OK:         	White=22    	Black=23     Best:        	White=1     	---} 1/2-1/2

[Event "13th Palmanova Festival A 2024"]
[Site "Palmanova"]
[Date "2024.12.31"]
[Round "6.12"]
[White "Maglioni, Leonardo"]
[Black "Domalchuk-Jonasson, Aleksandr"]
[Result "1/2-1/2"]
[ECO "C11"]
[WhiteElo "1971"]
[BlackElo "2377"]
[Annotator "TA"]
[PlyCount "99"]
[EventDate "2024.12.27"]
[EventCountry "ITA"]
[SourceTitle "playchess.com"]
[Source "ChessBase"]
[SourceQuality "1"]
[TimeControl "6000+30"]

{[%evp 18,99,36,29,51,54,48,56,60,41,45,12,26,22,16,9,35,33,55,63,83,1,120,121,120,120,154,150,147,138,259,254,256,240,257,248,225,203,195,170,228,186,182,169,347,58,55,61,62,62,61,54,54,33,34,39,37,39,33,35,37,36,35,37,38,0,0,0,40,27,39,10,10,10,10,8,33,0,0,0,33,0,0,0]} 1. e4 {[%emt 0:02:09][%cal Be2e4,Be4e5][%mdl 32]} e6 {[%emt 0:04:54]} 2. d4 {[%emt 0:00:03]} d5 {[%emt 0:00:05]} 3. Nc3 {[%emt 0:00:04]} Nf6 {[%emt 0:00:19]} 4. e5 {[%emt 0:00:04]} Nfd7 {[%emt 0:00:04]} 5. f4 {[%emt 0:00:03]} c5 {[%emt 0:00:05]} 6. Nf3 {[%emt 0:00:03]} Nc6 {[%emt 0:00:04]} 7. Be3 {[%emt 0:00:03]} Qb6 {[%emt 0:02:33]} 8. Na4 {[%emt 0:00:57]} Qa5+ {[%emt 0:00:09]} 9. c3 {[%emt 0:00:19]} c4 {[%emt 0:00:03]} 10. b4 {[%emt 0:11:56]} Nxb4 {[%emt 0:01:57]} 11. cxb4 {[%emt 0:01:07]} Bxb4+ {[%emt 0:00:05]} 12. Kf2 {[%emt 0:00:25]} b5 {[%emt 0:10:38]} 13. a3 {[%emt 0:03:12]} Be7 {[%emt 0:02:28]} 14. Nc5 {[%emt 0:06:33]} Nxc5 {[%emt 0:03:25]} 15. dxc5 {[%emt 0:00:09]} Bd7 {[%emt 0:03:03]} 16. Be2 {[%emt 0:06:22]} Qc7 {[%emt 0:03:03][%cal Oe8g8]} 17. Qd4 {[%emt 0:02:44]} a5 {[%emt 0:10:26] [#]} 18. f5 $1 {[%emt 0:17:29]} Rc8 {[%emt 0:25:08][%cal Ba8c8,Bc8c5,Bc5c7,Bc7b7][%mdl 32]} (18... f6 19. fxe6) 19. f6 {[%emt 0:04:35]} ({White should try} 19. c6 $16 Qxc6 20. Qg4) 19... gxf6 {[%emt 0:03:54]} (19... Bxc5 $11 20. Qxc5 (20. fxg7 Rg8 $16) 20... Qxc5 21. Bxc5 Rxc5) 20. exf6 $16 {[%emt 0:00:07]} Bxc5 {[%emt 0:00:02]} 21. Qxc5 {[%emt 0:00:22]} Qxc5 {[%emt 0:00:03]} 22. Bxc5 {[%emt 0:00:09]} Rxc5 {[%emt 0:00:02] [#] Black is weak on the dark squares} 23. Ke3 $1 {[%emt 0:02:29]} Kd8 {[%emt 0:22:17]} (23... h5 $16 24. Ne5 Rc7) 24. Kd4 $18 {[%emt 0:04:20]} Rc7 {[%emt 0:00:48]} 25. Ne5 {[%emt 0:01:30]} Be8 {[%emt 0:00:06]} 26. g4 {[%emt 0:02:09]} Kc8 {[%emt 0:12:45]} 27. Rab1 {[%emt 0:01:53]} Rb7 {[%emt 0:00:08]} 28. g5 {[%emt 0:00:43]} b4 {[%emt 0:00:25]} (28... Kc7 29. Ra1 Kd6) 29. axb4 {[%emt 0:00:32]} axb4 {[%emt 0:00:06]} 30. Rhc1 {[%emt 0:02:20][%cal Oe2c4]} Kb8 $2 {[%emt 0:01:42] [#]} (30... b3 {was called for.} 31. Ra1 Kb8) 31. Bxc4 $2 {[%emt 0:00:34]} dxc4 $14 {[%emt 0:00:21]} 32. Rxc4 {[%emt 0:00:34]} b3 {[%emt 0:01:02]} 33. Kc3 {[%emt 0:01:16]} Rg8 {[%emt 0:03:39]} 34. h4 {[%emt 0:00:35] White has more active pieces.} (34. Rxb3 Rxg5 (34... Rxb3+ 35. Kxb3 Rxg5 36. Rg4 $17) 35. Rxb7+ Kxb7 $17) 34... h6 $1 {[%emt 0:00:01]} 35. Rxb3 {[%emt 0:03:14]} (35. g6 {looks sharper.} fxg6 36. Rxb3 Rxb3+ 37. Kxb3 g5 38. f7) 35... Rxb3+ {[%emt 0:00:42]} 36. Kxb3 {[%emt 0:00:01] aiming for Rc5.} hxg5 {[%emt 0:00:08][%mdl 4096] Endgame KRB-KRN. Black is a pawn up.} 37. Rg4 {[%emt 0:00:07]} Kc7 {[%emt 0:00:35]} 38. Kc4 {[%emt 0:00:39]} Kd6 {[%emt 0:00:30]} 39. Kd4 {[%emt 0:00:19]} (39. Rxg5 $2 {loses.} Rxg5 40. Nf3 Rf5 $19) 39... Rh8 {[%emt 0:00:45]} 40. hxg5 {[%emt 0:00:09]} Rh1 {[%emt 0:00:40]} 41. Rg3 {[%emt 0:05:37]} Rh4+ {[%emt 0:00:00]} 42. Rg4 {[%emt 0:00:00]} Rh1 {[%emt 0:00:00] and ...Rd1+ should not be overlooked} 43. Nc4+ {[%emt 0:00:00]} Kc6 {[%emt 0:00:00]} 44. Ke5 {[%emt 0:00:00]} Re1+ {[%emt 0:00:00]} 45. Re4 {[%emt 0:00:00]} Rg1 {[%emt 0:00:00]} 46. Kf4 {[%emt 0:00:00]} Rf1+ {[%emt 0:00:00]} 47. Kg4 {[%emt 0:00:00]} Rg1+ {[%emt 0:00:00]} 48. Kf4 {[%emt 0:00:00]} Rf1+ {[%emt 0:00:00]} 49. Kg4 {[%emt 0:00:00]} Rg1+ {[%emt 0:00:00]} 50. Kf4 {[%emt 0:00:00]} 1/2-1/2

[Event "13th Palmanova Festival A 2024"]
[Site "Palmanova"]
[Date "2024.12.31"]
[Round "6.13"]
[White "Lekic, Dusan"]
[Black "Adharsh K"]
[Result "0-1"]
[ECO "E94"]
[WhiteElo "2287"]
[BlackElo "2235"]
[Annotator "NA RC"]
[PlyCount "112"]
[EventDate "2024.12.27"]
[EventCountry "ITA"]
[SourceTitle "playchess.com"]
[Source "ChessBase"]
[SourceQuality "1"]
[TimeControl "6000+30"]

1. d4 {[%emt 0:01:45]} Nf6 {[%emt 0:00:13]} 2. c4 {[%emt 0:00:25]} g6 {[%emt 0:00:06]} 3. Nc3 {[%emt 0:00:08]} Bg7 {[%emt 0:00:05]} 4. e4 {[%emt 0:00:07]} d6 {[%emt 0:00:04]} 5. Nf3 {[%emt 0:00:09]} O-O {[%emt 0:00:08]} 6. Be2 {[%emt 0:00:06]} e5 {[%emt 0:00:05]} 7. O-O {[%emt 0:00:09]} exd4 {[%emt 0:00:08]} 8. Nxd4 {[%emt 0:00:13]} Re8 {[%emt 0:00:22]} 9. f3 {[%emt 0:01:02]} c6 {[%emt 0:00:06]} 10. Kh1 {[%emt 0:02:18]} Na6 {[%emt 0:00:55]} 11. Bg5 {[%emt 0:02:13]} h6 {[%emt 0:02:17]} 12. Bh4 {[%emt 0:00:22]} Nc5 {[%emt 0:21:31]} 13. Nb3 {[%emt 0:04:31]} Nxb3 {[%emt 0:08:52]} 14. axb3 {[%emt 0:02:15]} Be6 {[%emt 0:00:54]} 15. Qc2 {[%emt 0:06:56]} g5 {[%emt 0:00:33]} 16. Bf2 {[%emt 0:00:46]} Qc7 {[%emt 0:02:12]} 17. Rfd1 {[%emt 0:03:54]} d5 {[%emt 0:23:18]} 18. exd5 {[%emt 0:00:59]} cxd5 {[%emt 0:00:11]} 19. Nb5 {[%emt 0:00:22]} Qe7 {[%emt 0:01:20]} 20. c5 {[%emt 0:11:26]} a6 {[%emt 0:03:31]} 21. Nd4 {[%emt 0:02:26]} Nd7 {[%emt 0:08:57]} 22. b4 {[%emt 0:02:02]} Ne5 {[%emt 0:01:32]} 23. Bf1 {[%emt 0:05:15]} Rac8 {[%emt 0:03:39]} 24. Nf5 {[%emt 0:08:18]} Bxf5 {[%emt 0:00:54]} 25. Qxf5 {[%emt 0:00:08]} Qe6 {[%emt 0:02:40]} 26. Qxe6 {[%emt 0:08:13]} fxe6 {[%emt 0:00:04]} 27. b5 {[%emt 0:00:17]} axb5 {[%emt 0:00:06]} 28. Bxb5 {[%emt 0:00:07]} Nc6 {[%emt 0:00:05]} 29. Rab1 {[%emt 0:00:23]} Red8 {[%emt 0:01:42]} 30. Bf1 {[%emt 0:10:43]} Nb4 {[%emt 0:03:58]} 31. Be1 {[%emt 0:07:24]} Nc2 {[%emt 0:00:05]} 32. Ba5 {[%emt 0:01:46]} Rf8 {[%emt 0:00:23]} 33. b4 {[%emt 0:03:06]} Ne3 {[%emt 0:00:10]} 34. Re1 {[%emt 0:01:33]} Nxf1 {[%emt 0:00:07]} 35. Rxf1 {[%emt 0:00:05]} Bc3 {[%emt 0:00:17]} 36. Bb6 {[%emt 0:02:16]} e5 {[%emt 0:03:48]} 37. b5 {[%emt 0:00:59]} d4 {[%emt 0:00:04]} 38. Rfd1 {[%emt 0:00:20]} Kf7 {[%emt 0:00:38]} 39. Rd3 {[%emt 0:02:23]} Ke6 {[%emt 0:00:13]} 40. Rc1 {[%emt 0:00:20]} Ra8 {[%emt 0:00:40]} 41. h3 {[%emt 0:00:26]} Ra3 {[%emt 0:00:42]} 42. c6 {[%emt 0:00:27]} Rb3 {[%emt 0:01:38]} 43. Ba5 {[%emt 0:03:47]} bxc6 {[%emt 0:00:41]} 44. bxc6 {[%emt 0:00:21]} Rc8 {[%emt 0:00:23]} 45. c7 {[%emt 0:00:16]} Ra3 {[%emt 0:00:56]} 46. Bxc3 {[%emt 0:08:32]} Rxc7 {[%emt 0:01:06]} 47. Re1 {[%emt 0:02:26]} dxc3 {[%emt 0:00:05]} 48. Rc1 {[%emt 0:00:12]} h5 {[%emt 0:00:23]} 49. h4 {[%emt 0:03:23]} gxh4 {[%emt 0:00:13]} 50. Kh2 {[%emt 0:00:07]} Kf5 {[%emt 0:00:11]} 51. Re3 {[%emt 0:01:48]} Rc4 {[%emt 0:00:14]} 52. Kh3 {[%emt 0:01:33]} Rb3 {[%emt 0:00:31]} 53. Rc2 {[%emt 0:02:12]} Kf4 {[%emt 0:03:23]} 54. Rce2 {[%emt 0:00:45]} Rb1 {[%emt 0:00:51]} 55. Re4+ {[%emt 0:01:01]} Rxe4 {[%emt 0:00:09]} 56. Rxe4+ {[%emt 0:00:09]} Kf5 {[%emt 0:00:04]} 0-1

[Event "13th Palmanova Festival A 2024"]
[Site "Palmanova"]
[Date "2024.12.31"]
[Round "6.14"]
[White "Mazzini, Mauro"]
[Black "Kekic, Urban"]
[Result "1/2-1/2"]
[ECO "C49"]
[WhiteElo "2069"]
[BlackElo "2010"]
[Annotator "NA COMBH"]
[PlyCount "34"]
[EventDate "2024.12.27"]
[EventCountry "ITA"]
[SourceTitle "playchess.com"]
[Source "ChessBase"]
[SourceQuality "1"]
[TimeControl "6000+30"]

1. e4 {[%emt 0:01:35]} e5 {[%emt 0:00:11]} 2. Nf3 {[%emt 0:00:10]} Nf6 {[%emt 0:00:11]} 3. Nc3 {[%emt 0:00:09]} Nc6 {[%emt 0:00:09]} 4. Bb5 {[%emt 0:00:08]} Bb4 {[%emt 0:00:16]} 5. O-O {[%emt 0:00:17]} O-O {[%emt 0:00:14]} 6. d3 {[%emt 0:00:06]} d6 {[%emt 0:00:11]} 7. Bg5 {[%emt 0:00:07]} Ne7 {[%emt 0:00:20]} 8. a3 {[%emt 0:14:14]} Bxc3 {[%emt 0:06:49]} 9. bxc3 {[%emt 0:00:10]} Ng6 {[%emt 0:02:03]} 10. Nh4 {[%emt 0:07:00]} h6 {[%emt 0:05:16]} 11. Nxg6 {[%emt 0:00:27]} fxg6 {[%emt 0:00:18]} 12. Bc4+ {[%emt 0:00:16]} Kh8 {[%emt 0:04:50]} 13. Bh4 {[%emt 0:03:23]} Qe7 {[%emt 0:04:10]} 14. Bb3 {[%emt 0:06:40]} Be6 {[%emt 0:04:36]} 15. f3 {[%emt 0:03:47]} g5 {[%emt 0:08:56]} 16. Bg3 {[%emt 0:02:18]} Nh5 {[%emt 0:10:03]} 17. d4 {[%emt 0:00:23]} Nxg3 {[%emt 0:11:04]} 1/2-1/2